bitfinex-derivatives/quotes_SOLF0:USTF0_20241226
["timestamp","ask_amount","ask_price","bid_price","bid_amount"]
[1735211478599,7.69579066,189.82,189.76,2.6379]
[1735211478800,7.69579066,189.82,189.75,7.69579066]
[1735211479005,2.6374,189.8,189.75,10.33379066]
[1735211479203,3.08,189.79,189.75,10.33379066]
[1735211479595,3.08,189.79,189.75,7.69579066]
[1735211479802,3.08,189.79,189.76,2.6379]
[1735211480698,3.08,189.79,189.75,10.33379066]
[1735211481699,3.08,189.79,189.76,2.6378]
[1735211482004,3.08,189.78,189.76,2.6378]
[1735211483406,3.08,189.78,189.75,2.638]
[1735211487807,3.08,189.77,189.75,2.638]
[1735211492004,2.637,189.83,189.79,2.6375]
[1735211492205,3.08,189.82,189.74,3.2657]
[1735211492406,3.08,189.82,189.78,7.69579066]
[1735211492606,15.02629349,189.85,189.81,2.6371]
[1735211492908,3.08,189.84,189.81,2.6371]
[1735211493810,5.7168,189.84,189.79,2.6374]
[1735211494009,7.69579066,189.83,189.79,2.6374]
[1735211494613,7.69579066,189.83,189.78,7.69579066]
[1735211494808,7.69579066,189.83,189.78,10.33339066]
[1735211495310,10.33279066,189.83,189.78,10.33339066]
[1735211497113,10.33279066,189.83,189.79,2.6374]
[1735211499810,2.6372,189.81,189.77,2.6377]
[1735211500009,10.33299066,189.81,189.77,2.6377]
[1735211501819,10.33299066,189.81,189.74,3.2657]
[1735211502117,2.6374,189.8,189.74,10.96149066]
[1735211502313,3.08,189.79,189.74,10.96149066]
[1735211502519,3.08,189.79,189.75,2.6379]
[1735211503017,29.32201134,189.85,189.74,10.96149066]
[1735211503223,7.69579066,189.81,189.74,10.96149066]
[1735211503618,10.33309066,189.81,189.76,2.6379]
[1735211507228,7.69579066,189.81,189.78,2.6375]
[1735211514331,2.6371,189.82,189.78,2.6375]
[1735211515330,3.08,189.81,189.78,2.6375]
[1735211517834,10.77579066,189.81,189.78,2.6375]
[1735211519837,13.41309066,189.81,189.78,2.6375]
[1735211520530,10.77579066,189.81,189.76,2.6379]
[1735211520837,7.69579066,189.79,189.76,2.6379]
[1735211521432,10.33329066,189.79,189.76,2.6379]
[1735211524241,10.33329066,189.79,189.74,1.5924]
[1735211524444,10.33329066,189.79,189.75,2.638]
[1735211524741,7.69579066,189.79,189.75,2.638]
[1735211528845,10.33329066,189.79,189.75,2.638]
[1735211529946,2.6375,189.79,189.75,2.638]
[1735211530145,7.69579066,189.78,189.75,2.638]
[1735211530440,3.08,189.81,189.76,2.6379]
[1735211530645,10.77579066,189.81,189.74,7.69579066]
[1735211532543,13.41299066,189.81,189.77,2.6377]
[1735211534649,7.69579066,189.8,189.77,2.6377]
[1735211538945,5.7172,189.81,189.77,2.6377]
[1735211539146,13.41299066,189.81,189.77,2.6377]
[1735211540847,7.69579066,189.79,189.77,2.6377]
[1735211542550,7.69579066,189.79,189.72,7.69579066]
[1735211544450,7.69579066,189.79,189.76,2.6378]
[1735211545549,3.08,189.78,189.76,2.6378]
[1735211549950,3.08,189.78,189.69,43.23316509]
[1735211549951,7.69579066,189.77,189.69,43.23316509]
[1735211550151,7.69579066,189.75,189.69,43.23316509]
[1735211550345,3.08,189.78,189.69,43.23316509]
[1735211550544,7.69579066,189.75,189.72,2.6384]
[1735211553656,7.69579066,189.75,189.69,41.69586509]
[1735211553657,10.33409066,189.73,189.69,44.33456509]
[1735211553850,3.08,189.72,189.69,44.33456509]
[1735211556752,10.33439066,189.71,189.67,2.6391]
[1735211556951,7.69579066,189.71,189.66,1.6516]
[1735211557257,7.69579066,189.69,189.65,2.6393]
[1735211557957,10.33469066,189.69,189.64,2.6395]
[1735211558757,7.69579066,189.65,189.61,4.2618]
[1735211558951,3.08,189.64,189.61,4.2618]
[1735211559453,2.6392,189.67,189.62,2.6398]
[1735211559654,3.08,189.66,189.63,7.69579066]
[1735211559955,3.08,189.66,189.64,2.6394]
[1735211560560,7.69579066,189.69,189.64,2.6394]
[1735211560754,3.08,189.68,189.64,2.6394]
[1735211567567,7.69579066,189.67,189.64,2.6394]
[1735211567752,3.08,189.68,189.64,2.6394]
[1735211567955,7.69579066,189.67,189.64,2.6394]
[1735211569464,3.08,189.68,189.64,2.6394]
[1735211569758,7.69579066,189.67,189.64,2.6394]
[1735211574065,7.69579066,189.65,189.46,185.12090342]
[1735211574269,7.69579066,189.65,189.62,2.6397]
[1735211576469,7.69579066,189.63,189.58,2.6403]
[1735211576771,70.69,189.75,189.58,7.69579066]
[1735211576972,7.69579066,189.66,189.6,7.69579066]
[1735211577276,3.08,189.65,189.61,7.69579066]
[1735211578274,3.08,189.65,189.58,2.6404]
[1735211578474,3.08,189.65,189.6,7.69579066]
[1735211579261,3.08,189.65,189.64,2.6396]
[1735211579972,3.08,189.65,189.63,2.6397]
[1735211581470,3.08,189.65,189.6,7.69579066]
[1735211581772,7.69579066,189.64,189.61,2.6399]
[1735211582773,7.69579066,189.64,189.62,2.6398]
[1735211582969,7.69579066,189.64,189.53,3.0847]
[1735211583167,7.69579066,189.64,189.57,7.69579066]
[1735211583374,3.08,189.65,189.59,7.69579066]
[1735211583575,3.08,189.65,189.58,1.5193]
[1735211583972,3.08,189.65,189.59,7.69579066]
[1735211584577,3.08,189.65,189.6,2.64]
[1735211584880,3.08,189.65,189.59,7.69579066]
[1735211586467,3.08,189.65,189.64,2.6396]
[1735211587072,7.69579066,189.68,189.65,2.6393]
[1735211587274,3.08,189.67,189.65,2.6393]
[1735211587779,3.08,189.67,189.64,2.6394]
[1735211588881,3.08,189.67,189.65,2.6394]
[1735211590381,7.69579066,189.66,189.65,2.6394]
[1735211591789,7.69579066,189.66,189.58,1.5193]
[1735211592080,7.69579066,189.66,189.58,9.21509066]
[1735211592282,7.69579066,189.66,189.59,1.5589]
[1735211592484,7.69579066,189.66,189.59,3.1103]
[1735211593180,7.69579066,189.66,189.64,2.6396]
[1735211595076,2.6388,189.7,189.65,2.6393]
[1735211595281,3.08,189.69,189.65,2.6393]
[1735211595485,7.69579066,189.68,189.65,2.6393]
[1735211596285,3.08,189.67,189.65,2.6393]
[1735211596686,7.69579066,189.7,189.62,7.69579066]
[1735211596880,7.69579066,189.7,189.64,7.69579066]
[1735211597083,7.33050283,189.72,189.66,7.69579066]
[1735211597387,29.32201134,189.73,189.68,7.69579066]
[1735211597779,29.32201134,189.73,189.72,2.6384]
[1735211598186,10.77579066,189.74,189.73,2.6383]
[1735211599380,10.77579066,189.74,189.72,2.6384]
[1735211599580,10.77579066,189.74,189.62,3.08]
[1735211599781,7.69579066,189.72,189.65,7.69579066]
[1735211600586,7.69579066,189.7,189.63,7.69579066]
[1735211601086,7.69579066,189.7,189.67,2.639]
[1735211601286,3.08,189.69,189.67,2.639]
[1735211606789,3.08,189.69,189.67,2.6391]
[1735211609092,3.08,189.69,189.64,7.69579066]
[1735211609298,3.08,189.69,189.68,2.639]
[1735211610091,3.08,189.73,189.72,2.6384]
[1735211611697,3.08,189.73,189.71,2.6386]
[1735211612196,10.77579066,189.73,189.71,2.6386]
[1735211613194,3.08,189.73,189.71,2.6386]
[1735211618898,7.69579066,189.74,189.71,2.6386]
[1735211619095,3.08,189.73,189.71,2.6386]
[1735211621498,58.64402271,189.82,189.7,7.69579066]
[1735211621800,7.69579066,189.79,189.75,2.638]
[1735211622702,5.7174,189.8,189.75,2.638]
[1735211622902,7.69579066,189.78,189.75,2.638]
[1735211623303,3.08,189.8,189.74,7.69579066]
[1735211624705,3.08,189.8,189.78,2.6375]
[1735211626907,0.19648,189.83,189.76,7.69579066]
[1735211627497,0.19648,189.83,189.8,2.6373]
[1735211627899,0.19648,189.83,189.73,1.5805]
[1735211628100,7.69579066,189.82,189.78,2.6375]
[1735211629403,7.69579066,189.82,189.75,7.69579066]
[1735211629604,7.69579066,189.82,189.79,2.6374]
[1735211629798,7.69579066,189.82,189.73,1.5805]
[1735211629999,7.69579066,189.82,189.77,7.69579066]
[1735211630307,0.19648,189.83,189.82,2.6371]
[1735211631408,0.19648,189.83,189.76,3.06]
[1735211631603,0.19648,189.83,189.77,7.69579066]
[1735211631802,0.19648,189.83,189.73,1.5805]
[1735211631803,7.89227066,189.83,189.73,4.6405]
[1735211631999,7.89227066,189.83,189.76,7.69579066]
[1735211632204,7.89227066,189.83,189.78,2.6375]
[1735211632399,7.89227066,189.83,189.76,7.69579066]
[1735211633207,0.19648,189.83,189.78,7.69579066]
[1735211633406,0.19648,189.83,189.79,1.6391]
[1735211633608,0.19648,189.83,189.81,2.6371]
[1735211636712,0.19648,189.83,189.8,2.6373]
[1735211637019,0.19648,189.83,189.77,7.69579066]
[1735211637316,0.19648,189.83,189.78,2.6375]
[1735211637616,0.19648,189.83,189.77,7.69579066]
[1735211638412,0.19648,189.83,189.79,2.6375]
[1735211641320,10.33259066,189.84,189.79,2.6375]
[1735211641819,7.69579066,189.84,189.8,2.6372]
[1735211643217,7.69579066,189.84,189.77,7.69579066]
[1735211643418,10.33259066,189.84,189.79,2.6374]
[1735211648327,10.33259066,189.84,189.77,7.69579066]
[1735211648513,7.69579066,189.84,189.8,2.6373]
[1735211659029,10.33259066,189.84,189.8,2.6373]
[1735211662331,2.637,189.83,189.78,2.6375]
[1735211662732,7.69579066,189.84,189.78,2.6375]
[1735211663030,7.69579066,189.82,189.78,2.6375]
[1735211663231,3.06,189.81,189.79,2.6375]
[1735211663435,3.06,189.81,189.75,7.69579066]
[1735211663930,3.06,189.81,189.78,2.6375]
[1735211664730,3.06,189.81,189.75,7.69579066]
[1735211664928,7.69579066,189.8,189.75,7.69579066]
[1735211665132,7.69579066,189.8,189.74,1.6217]
[1735211666536,10.33319066,189.8,189.76,2.6379]
[1735211668738,7.69579066,189.8,189.76,2.6379]
[1735211669433,10.33309066,189.8,189.76,2.6379]
[1735211670439,7.69579066,189.78,189.75,2.638]
[1735211674442,10.33369066,189.76,189.71,2.6386]
[1735211674644,3.06,189.75,189.71,2.6386]
[1735211675643,5.6981,189.75,189.69,2.6388]
[1735211675851,5.6981,189.75,189.69,7.69579066]
[1735211676549,5.6981,189.75,189.7,2.6386]
[1735211682355,7.69579066,189.74,189.68,3.2992]
[1735211682556,10.33429066,189.72,189.65,9.26219066]
[1735211682749,7.69579066,189.72,189.65,9.26219066]
[1735211682948,77.8979639,189.82,189.69,7.69579066]
[1735211683151,7.69579066,189.76,189.69,7.69579066]
[1735211683449,3.06,189.75,189.69,7.69579066]
[1735211683856,3.06,189.75,189.7,2.6386]
[1735211684057,3.06,189.75,189.69,7.69579066]
[1735211684556,3.06,189.75,189.71,2.6385]
[1735211685251,7.69579066,189.74,189.67,7.69579066]
[1735211685446,7.69579066,189.74,189.68,2.639]
[1735211685646,7.69579066,189.72,189.68,2.639]
[1735211685851,7.69579066,189.74,189.69,2.6389]
[1735211686051,7.69579066,189.74,189.67,7.69579066]
[1735211686252,7.69579066,189.72,189.67,7.69579066]
[1735211686451,7.69579066,189.72,189.65,7.69579066]
[1735211686647,7.69579066,189.7,189.65,7.69579066]
[1735211686853,3.06,189.69,189.63,7.69579066]
[1735211687257,3.06,189.69,189.64,2.6395]
[1735211687554,7.69579066,189.68,189.62,10.91649066]
[1735211687751,7.69579066,189.68,189.62,7.69579066]
[1735211687956,7.69579066,189.68,189.61,1.84562517]
[1735211687957,7.69579066,189.66,189.61,4.48562517]
[1735211688160,7.69579066,189.66,189.61,1.84562517]
[1735211689061,10.33519066,189.66,189.61,1.84562517]
[1735211689460,7.69579066,189.64,189.61,1.84562517]
[1735211689658,3.06,189.63,189.58,7.69579066]
[1735211690255,3.06,189.63,189.61,2.64]
[1735211692065,3.06,189.63,189.62,2.6398]
[1735211698570,3.06,189.64,189.62,2.6398]
[1735211699067,10.33499066,189.67,189.62,2.6398]
[1735211699270,3.1837,189.72,189.64,2.6395]
[1735211699473,7.69579066,189.69,189.64,2.6395]
[1735211700478,10.33469066,189.69,189.64,2.6395]
[1735211701275,3.06,189.68,189.64,2.6395]
[1735211701481,10.33499066,189.67,189.62,2.6397]
[1735211701776,7.69579066,189.67,189.6,7.69579066]
[1735211702376,2.6393,189.66,189.61,2.64]
[1735211702773,7.69579066,189.63,189.53,4.8249]
[1735211702968,3.06,189.62,189.57,7.69579066]
[1735211704579,3.06,189.62,189.59,2.6402]
[1735211705473,7.69579066,189.61,189.53,4.8249]
[1735211705676,7.69579066,189.59,189.53,4.8249]
[1735211706182,7.69579066,189.59,189.54,2.6409]
[1735211706478,2.6401,189.6,189.52,9.55541133]
[1735211706479,7.69579066,189.57,189.52,1.85962067]
[1735211706680,10.33659066,189.55,189.49,2.6416]
[1735211706880,7.69579066,189.53,189.48,7.69579066]
[1735211707084,3.06,189.52,189.48,7.69579066]
[1735211708584,3.06,189.52,189.48,10.33759066]
[1735211709685,3.06,189.52,189.47,2.6419]
[1735211709686,7.69579066,189.51,189.47,2.6419]
[1735211710292,10.33719066,189.51,189.46,4.8247]
[1735211710495,10.33719066,189.51,189.46,3.1611]
[1735211710880,10.33719066,189.51,189.46,1.5605]
[1735211711081,2.6415,189.5,189.46,1.5605]
[1735211712185,2.6415,189.5,189.44,2.6423]
[1735211712582,7.69579066,189.45,189.35,7.69579066]
[1735211712788,7.69579066,189.42,189.35,7.69579066]
[1735211712998,7.69579066,189.42,189.37,2.6433]
[1735211713884,7.69579066,189.4,189.36,2.6435]
[1735211714091,3.06,189.39,189.33,7.69579066]
[1735211714487,3.06,189.39,189.31,2.6441]
[1735211714687,3.06,189.39,189.33,7.69579066]
[1735211714990,7.69579066,189.4,189.33,7.69579066]
[1735211715691,7.69579066,189.4,189.34,2.6437]
[1735211716388,7.69579066,189.35,189.17,29.16217953]
[1735211716584,7.69579066,189.3,189.23,1.6596]
[1735211716789,7.69579066,189.3,189.23,9.35539066]
[1735211717294,7.69579066,189.3,189.23,1.6596]
[1735211718293,12.07860613,189.32,189.23,4.3047]
[1735211718893,2.6443,189.31,189.23,4.3047]
[1735211719694,12.07860613,189.32,189.2,1.6757]
[1735211719895,14.72310613,189.29,189.21,2.6454]
[1735211720288,14.72310613,189.29,189.22,2.6454]
[1735211721194,12.07860613,189.34,189.22,12.07860613]
[1735211721390,12.07860613,189.34,189.2,1.6757]
[1735211721690,1.5792,189.39,189.25,12.07860613]
[1735211721691,12.07860613,189.37,189.25,12.07860613]
[1735211721889,1.5792,189.39,189.28,12.07860613]
[1735211722194,2.6432,189.38,189.29,1.6567]
[1735211722789,14.72190613,189.37,189.29,4.301]
[1735211722993,14.72190613,189.37,189.29,1.6567]
[1735211722994,12.07860613,189.37,189.29,1.6567]
[1735211723789,2.6436,189.35,189.29,1.6567]
[1735211724494,3.08,189.34,189.29,1.6567]
[1735211724694,2.6436,189.35,189.29,1.6567]
[1735211724885,3.08,189.34,189.29,1.6567]
[1735211725090,5.7238,189.34,189.29,1.6567]
[1735211725491,2.6439,189.33,189.26,1.5443]
[1735211726495,2.6439,189.33,189.26,4.189]
[1735211727194,3.08,189.34,189.27,2.6447]
[1735211728293,5.7238,189.34,189.27,2.6447]
[1735211728890,3.08,189.34,189.27,2.6447]
[1735211729094,2.644,189.32,189.27,2.6447]
[1735211729395,3.08,189.31,189.24,2.645]
[1735211729694,2.6443,189.3,189.24,2.645]
[1735211730189,3.08,189.31,189.24,2.645]
[1735211730190,12.07860613,189.29,189.24,2.645]
[1735211730386,14.72310613,189.29,189.24,2.645]
[1735211733094,2.6449,189.26,189.21,2.6455]
[1735211733395,3.08,189.25,189.21,2.6455]
[1735211733895,5.725,189.25,189.21,2.6455]
[1735211734496,3.08,189.25,189.21,2.6455]
[1735211738304,7.73419372,189.24,189.21,2.6455]
[1735211739305,10.81419372,189.25,189.21,2.6455]
[1735211745213,3.08,189.24,189.21,2.6455]
[1735211745411,3.08,189.23,189.21,2.6455]
[1735211745912,3.08,189.22,189.19,7.73419372]
[1735211746105,7.73419372,189.27,189.19,9.29569372]
[1735211746307,3.08,189.26,189.23,2.6452]
[1735211746713,7.73419372,189.27,189.23,2.6452]
[1735211746911,3.08,189.26,189.23,2.6452]
[1735211748813,3.08,189.26,189.19,9.29569372]
[1735211749013,3.08,189.26,189.24,2.6451]
[1735211752105,7.73419372,189.25,189.21,2.6455]
[1735211753518,3.08,189.26,189.24,2.645]
[1735211753814,10.81419372,189.26,189.24,2.645]
[1735211754411,3.08,189.25,189.24,2.645]
[1735211754610,3.08,189.25,189.17,7.73419372]
[1735211754810,7.73419372,189.23,189.17,7.73419372]
[1735211755511,7.73419372,189.23,189.13,3.1499]
[1735211755716,7.73419372,189.23,189.19,2.6458]
[1735211758219,3.08,189.22,189.19,2.6458]
[1735211758416,3.08,189.22,189.2,2.6457]
[1735211758923,3.08,189.22,189.18,7.73419372]
[1735211759724,3.08,189.21,189.19,2.6458]
[1735211759923,3.08,189.2,189.19,2.6458]
[1735211760222,7.73419372,189.24,189.18,7.73419372]
[1735211760422,3.08,189.23,189.18,7.73419372]
[1735211761425,3.08,189.23,189.22,2.6454]
[1735211763129,3.08,189.23,189.18,2.6459]
[1735211763335,7.73419372,189.21,189.13,3.1499]
[1735211763535,7.73419372,189.19,189.13,3.1499]
[1735211763736,3.08,189.18,189.15,2.6463]
[1735211764736,2.6454,189.23,189.17,2.6461]
[1735211764931,7.73419372,189.2,189.14,7.73419372]
[1735211765534,7.73419372,189.18,189.17,2.646]
[1735211765732,7.73419372,189.18,189.12,51.08228585]
[1735211765937,3.08,189.17,189.12,58.81647957]
[1735211766130,3.08,189.17,189.16,2.6463]
[1735211766740,7.73419372,189.21,189.14,7.73419372]
[1735211766942,7.32266809,189.27,189.16,7.73419372]
[1735211766943,7.73419372,189.24,189.16,7.73419372]
[1735211767237,7.73419372,189.24,189.18,7.73419372]
[1735211767238,3.08,189.23,189.18,7.73419372]
[1735211768035,3.08,189.23,189.21,2.6455]
[1735211768740,3.08,189.23,189.12,51.08228585]
[1735211768741,7.73419372,189.22,189.19,2.6457]
[1735211768939,3.08,189.23,189.19,2.6457]
[1735211769134,7.73419372,189.22,189.19,2.6457]
[1735211770446,7.73419372,189.22,189.15,7.73419372]
[1735211770447,7.73419372,189.22,189.15,2.6464]
[1735211770639,7.73419372,189.2,189.13,7.73419372]
[1735211771338,7.73419372,189.2,189.17,2.6461]
[1735211771642,7.73419372,189.2,189.12,58.81647957]
[1735211771943,7.73419372,189.18,189.12,58.81647957]
[1735211772242,3.08,189.17,189.15,2.6463]
[1735211772638,3.08,189.17,189.13,2.6466]
[1735211773542,7.73419372,189.16,189.13,2.6466]
[1735211773742,7.73419372,189.16,189.1,1.5625]
[1735211774237,7.73419372,189.14,189.07,3.1321]
[1735211774442,7.73419372,189.14,189.11,2.6469]
[1735211774642,7.73419372,189.16,189.08,7.73419372]
[1735211774841,3.08,189.15,189.14,2.6465]
[1735211776449,3.08,189.15,189.07,3.1321]
[1735211776647,3.08,189.15,189.1,7.73419372]
[1735211777048,3.08,189.15,189.13,2.6466]
[1735211777248,7.73419372,189.16,189.13,2.6466]
[1735211777449,3.08,189.15,189.13,2.6466]
[1735211777746,7.73419372,189.16,189.13,2.6466]
[1735211777747,3.08,189.14,189.13,2.6466]
[1735211778651,7.73419372,189.16,189.14,2.6465]
[1735211778845,3.08,189.15,189.14,2.6465]
[1735211779047,7.73419372,189.18,189.11,7.73419372]
[1735211779248,3.08,189.17,189.15,2.6463]
[1735211779448,3.08,189.17,189.07,3.1321]
[1735211779650,3.08,189.17,189.12,7.73419372]
[1735211780748,3.08,189.17,189.15,2.6463]
[1735211789161,3.08,189.17,189.07,3.1321]
[1735211789361,7.73419372,189.15,189.12,2.6468]
[1735211789558,7.73419372,189.15,189.08,7.73419372]
[1735211790156,3.08,189.17,189.07,3.1321]
[1735211790157,7.73419372,189.13,189.07,3.1321]
[1735211790470,7.73419372,189.11,189.07,3.1321]
[1735211790658,3.08,189.1,189.07,3.1321]
[1735211791562,3.08,189.1,189.07,5.7796]
[1735211791764,3.08,189.1,189.05,1.6193]
[1735211792471,3.08,189.1,189.06,2.6476]
[1735211792668,3.08,189.1,189.04,7.73419372]
[1735211794374,3.08,189.1,189.06,2.6476]
[1735211795672,3.08,189.09,189.08,2.6472]
[1735211796272,3.08,189.09,189.04,7.73419372]
[1735211796772,3.08,189.09,189.08,2.6474]
[1735211796975,3.08,189.09,189.02,47.73334041]
[1735211797164,3.08,189.09,189.04,7.73419372]
[1735211797468,3.08,189.09,189.07,2.6475]
[1735211799378,3.08,189.09,189.04,7.73419372]
[1735211801478,3.08,189.09,189.08,2.6474]
[1735211804774,3.08,189.09,189.02,47.73334041]
[1735211804980,3.08,189.09,189.05,2.6477]
[1735211805479,3.08,189.09,189.03,7.73419372]
[1735211806982,3.08,189.09,189.06,2.6475]
[1735211807383,3.08,189.09,189.05,7.73419372]
[1735211807883,3.08,189.09,189.06,2.6476]
[1735211809782,3.08,189.09,189.07,2.6475]
[1735211812383,3.08,189.09,189.06,2.6476]
[1735211814180,3.08,189.09,189.03,7.73419372]
[1735211814381,3.08,189.09,189.07,2.6475]
[1735211816292,3.08,189.09,189.03,7.73419372]
[1735211816588,3.08,189.09,189.06,2.6476]
[1735211817887,3.08,189.09,189.07,2.6475]
[1735211818190,10.38119372,189.11,189.07,2.6475]
[1735211818397,3.08,189.08,189.07,2.6475]
[1735211821696,3.08,189.08,189.07,7.73419372]
[1735211821898,7.32266809,189.16,189.07,7.73419372]
[1735211822094,3.08,189.15,189.12,2.6467]
[1735211822296,3.08,189.14,189.1,7.73419372]
[1735211823391,3.08,189.14,189.12,2.6467]
[1735211823590,3.08,189.14,189.1,7.73419372]
[1735211823797,10.38019372,189.18,189.1,7.73419372]
[1735211823997,3.08,189.17,189.1,7.73419372]
[1735211824500,3.08,189.16,189.15,2.6464]
[1735211825599,7.32266809,189.19,189.14,7.73419372]
[1735211825793,3.08,189.18,189.17,2.6461]
[1735211826398,7.32266809,189.23,189.2,2.6457]
[1735211826695,3.08,189.22,189.18,7.73419372]
[1735211826900,3.08,189.22,189.19,2.6458]
[1735211827099,7.73419372,189.23,189.19,2.6458]
[1735211827399,3.08,189.22,189.19,2.6458]
[1735211827600,3.08,189.22,189.2,2.6457]
[1735211829797,3.08,189.21,189.2,2.6457]
[1735211831594,3.08,189.21,189.08,3.2343]
[1735211831595,10.81419372,189.21,189.08,3.2343]
[1735211831800,10.81419372,189.21,189.13,7.73419372]
[1735211832302,3.08,189.21,189.13,7.73419372]
[1735211832598,7.73419372,189.2,189.13,7.73419372]
[1735211833402,7.73419372,189.2,189.16,2.6463]
[1735211835203,7.73419372,189.2,189.15,2.6464]
[1735211835906,7.73419372,189.2,189.16,2.6462]
[1735211839410,5.7256,189.21,189.16,2.6462]
[1735211839808,13.45979372,189.21,189.16,2.6462]
[1735211841811,10.81419372,189.21,189.13,7.73419372]
[1735211842011,3.08,189.2,189.17,7.73419372]
[1735211843010,3.08,189.2,189.19,2.6458]
[1735211843908,55.0,189.24,189.19,2.6458]
[1735211844208,3.08,189.23,189.2,7.73419372]
[1735211844811,10.37879372,189.28,189.22,2.6453]
[1735211845013,10.37879372,189.28,189.24,7.73419372]
[1735211845014,3.08,189.28,189.24,7.73419372]
[1735211845309,7.73419372,189.31,189.24,7.73419372]
[1735211845310,3.08,189.27,189.24,7.73419372]
[1735211845813,3.08,189.27,189.25,2.6449]
[1735211847813,3.08,189.28,189.25,2.6449]
[1735211848614,3.08,189.28,189.24,7.73419372]
[1735211848814,3.08,189.28,189.26,2.6448]
[1735211860421,3.08,189.28,189.27,2.6447]
[1735211860612,7.73419372,189.34,189.26,7.73419372]
[1735211860821,3.06,189.33,189.29,7.73419372]
[1735211862021,62.34885532,189.4,189.29,7.73419372]
[1735211862222,7.73419372,189.36,189.29,7.73419372]
[1735211862418,3.06,189.35,189.31,7.73419372]
[1735211863022,7.73419372,189.36,189.31,7.73419372]
[1735211863220,3.06,189.35,189.31,7.73419372]
[1735211863417,3.06,189.35,189.32,2.644]
[1735211865418,3.06,189.35,189.3,7.73419372]
[1735211865419,3.06,189.35,189.33,2.6439]
[1735211866622,3.06,189.35,189.3,7.73419372]
[1735211866823,3.06,189.35,189.21,3.1836]
[1735211866824,3.06,189.36,189.32,7.73419372]
[1735211867221,55.02,189.4,189.32,7.73419372]
[1735211867423,3.06,189.39,189.34,2.6437]
[1735211868125,3.06,189.39,189.36,2.6434]
[1735211868526,1.31987893,189.44,189.36,7.73419372]
[1735211868725,1.31987893,189.44,189.4,2.6429]
[1735211868726,9.05407265,189.44,189.4,2.6429]
[1735211868924,3.06,189.43,189.38,7.73419372]
[1735211869521,3.06,189.43,189.4,7.73419372]
[1735211870428,3.06,189.43,189.41,2.6426]
[1735211870831,10.37629372,189.47,189.41,2.6426]
[1735211871029,3.06,189.46,189.43,2.6425]
[1735211871326,3.06,189.47,189.42,7.73419372]
[1735211871531,3.06,189.47,189.46,2.6421]
[1735211872122,3.06,189.47,189.45,2.6422]
[1735211872327,3.06,189.47,189.42,7.73419372]
[1735211873438,3.06,189.47,189.42,10.37679372]
[1735211876238,3.06,189.47,189.36,1.5836]
[1735211876239,7.73419372,189.45,189.4,2.6429]
[1735211877342,5.7019,189.47,189.41,7.73419372]
[1735211877543,13.43609372,189.47,189.41,7.73419372]
[1735211879343,13.43609372,189.47,189.41,10.37689372]
[1735211880542,13.43609372,189.47,189.42,2.6426]
[1735211882246,2.6422,189.46,189.41,7.73419372]
[1735211882446,2.6422,189.46,189.4,2.6429]
[1735211883152,2.6422,189.46,189.39,7.73419372]
[1735211883356,2.6422,189.46,189.41,2.6427]
[1735211883947,5.702,189.47,189.42,2.6426]
[1735211884951,5.702,189.47,189.41,7.73419372]
[1735211884952,5.702,189.47,189.43,2.6424]
[1735211886659,3.06,189.47,189.41,7.73419372]
[1735211887258,3.06,189.47,189.43,7.73419372]
[1735211887858,3.06,189.46,189.43,7.73419372]
[1735211888256,3.06,189.46,189.44,2.6423]
[1735211888558,3.06,189.46,189.43,7.73419372]
[1735211888751,7.73419372,189.48,189.44,2.6422]
[1735211888956,3.06,189.46,189.44,2.6422]
[1735211889258,3.06,189.46,189.43,7.73419372]
[1735211890559,3.06,189.47,189.43,7.73419372]
[1735211891055,3.06,189.47,189.45,7.73419372]
[1735211891259,3.06,189.47,189.46,2.6421]